lending/lending_fUSD_20240621
["ID","MTS","AMOUNT","RATE_DAILY","PERIOD"]
[330036269,1718956651817,-654.22,0.00041643,31]
[330036270,1718956651851,-500.0,0.00041643,31]
[330036271,1718956651876,-899.77,0.00041643,31]
[330036272,1718956651905,-500.0,0.00041643,31]
[330036273,1718956651932,-500.0,0.00041643,31]
[330036274,1718956651958,-500.0,0.00041643,31]
[330036275,1718956651983,-500.0,0.00041643,31]
[330036276,1718956652008,-500.0,0.00041643,31]
[330036277,1718956652032,-566.78995866,0.00041643,31]
[330036278,1718956652055,-551.18751296,0.00041643,31]
[330036279,1718956652079,-500.0,0.00041643,31]
[330036280,1718956652104,-784.26,0.00041643,31]
[330036281,1718956652129,-500.0,0.00041643,31]
[330036282,1718956652158,-500.0,0.00041643,31]
[330036283,1718956652183,-500.0,0.00041643,31]
[330036284,1718956652208,-500.0,0.00041643,31]
[330036285,1718956652233,-500.0,0.00041643,31]
[330036286,1718956652258,-500.0,0.00041643,31]
[330036287,1718956652283,-500.0,0.00041643,31]
[330036288,1718956652306,-500.0,0.00041643,31]
[330036289,1718956652330,-553.33,0.00041643,31]
[330036290,1718956652354,-328.64670862,0.00041643,31]
[330036291,1718956652378,-609.08,0.00041643,31]
[330036292,1718956652403,-500.0,0.00041643,31]
[330036293,1718956652427,-500.0,0.00041643,31]
[330036294,1718956652451,-932.71,0.00041643,31]
[330036295,1718956652476,-513.15,0.00041643,31]
[330036296,1718956652501,-631.13,0.00041643,31]
[330036297,1718956652528,-500.0,0.00041643,31]
[330036298,1718956652554,-516.29,0.00041643,31]
[330036299,1718956652579,-500.0,0.00041643,31]
[330036300,1718956652604,-500.0,0.00041643,31]
[330036301,1718956652629,-500.0,0.00041643,31]
[330036302,1718956652655,-999.25,0.00041643,31]
[330036303,1718956652681,-501.7702591,0.00041643,31]
[330036304,1718956652707,-500.0,0.00041643,31]
[330036305,1718956652732,-500.0,0.00041643,31]
[330036306,1718956652759,-497.33809475,0.00041643,31]
[330036307,1718956652785,-660.13,0.00041643,31]
[330036308,1718956652810,-827.46,0.00041643,31]
[330036309,1718956652838,-500.0,0.00041643,31]
[330036310,1718956652864,-500.0,0.00041643,31]
[330036311,1718956652893,-500.0,0.00041643,31]
[330036312,1718956652920,-500.0,0.00041643,31]
[330036313,1718956652947,-529.6225802,0.00041643,31]
[330036314,1718956652972,-850.56,0.00041643,31]
[330036315,1718956652997,-625.0,0.00041643,31]
[330036316,1718956653022,-500.22,0.00041643,31]
[330036317,1718956653046,-500.0,0.00041643,31]
[330036318,1718956653072,-500.0,0.00041643,31]
[330036319,1718956653096,-500.0,0.00041643,31]
[330036320,1718956653120,-500.0,0.00041643,31]
[330036321,1718956653147,-500.0,0.00041643,31]
[330036322,1718956653171,-500.0,0.00041643,31]
[330036323,1718956653196,-500.0,0.00041643,31]
[330036324,1718956653221,-500.0,0.00041643,31]
[330036325,1718956653247,-1258.76,0.00041643,31]
[330036326,1718956653272,-500.0,0.00041643,31]
[330036327,1718956653300,-500.0,0.00041643,31]
[330036328,1718956653325,-500.0,0.00041643,31]
[330036329,1718956653352,-500.0,0.00041643,31]
[330036330,1718956653380,-223.88685829,0.00041643,31]
[330036331,1718956653410,-1056.3,0.00041643,31]
[330036332,1718956653437,-547.66,0.00041643,31]
[330036333,1718956653464,-500.0,0.00041643,31]
[330036334,1718956653491,-500.0,0.00041643,31]
[330036335,1718956653518,-619.91,0.00041643,31]
[330036336,1718956653545,-507.18,0.00041643,31]
[330036337,1718956653572,-500.0,0.00041643,31]
[330036338,1718956653599,-500.0,0.00041643,31]
[330036339,1718956653626,-500.0,0.00041643,31]
[330036340,1718956653658,-500.0,0.00041643,31]
[330036341,1718956653685,-500.0,0.00041643,31]
[330036342,1718956653712,-500.0,0.00041643,31]
[330036343,1718956653743,-647.69,0.00041643,31]
[330036344,1718956653770,-500.0,0.00041643,31]
[330036345,1718956653803,-500.0,0.00041643,31]
[330036346,1718956653837,-500.0,0.00041643,31]
[330036347,1718956653868,-500.0,0.00041643,31]
[330036348,1718956653898,-601.39,0.00041643,31]
[330036349,1718956654094,-500.0,0.00041643,31]
[330036350,1718956654164,-500.0,0.00041643,31]
[330036351,1718956654188,-500.0,0.00041643,31]
[330036352,1718956654215,-500.0,0.00041643,31]
[330036353,1718956654240,-500.0,0.00041643,31]
[330036354,1718956654266,-811.87,0.00041643,31]
[330036355,1718956654291,-500.0,0.00041643,31]
[330036356,1718956654317,-572.49736378,0.00041643,31]
[330036357,1718956654342,-825.35,0.00041643,31]
[330036358,1718956654367,-395.88486976,0.00041643,31]
[330036359,1718956654394,-500.0,0.00041643,31]
[330036360,1718956654420,-348.03962912,0.00041643,31]
[330036361,1718956654446,-500.0,0.00041643,31]
[330036362,1718956654471,-500.0,0.00041643,31]
[330036363,1718956654496,-500.0,0.00041643,31]
[330036364,1718956654522,-500.0,0.00041643,31]
[330036365,1718956654551,-500.0,0.00041643,31]
[330036366,1718956654575,-500.0,0.00041643,31]
[330036367,1718956654599,-500.0,0.00041643,31]
[330036368,1718956654624,-500.0,0.00041643,31]
[330036369,1718956654648,-500.0,0.00041643,31]
[330036370,1718956654673,-500.0,0.00041643,31]
[330036371,1718956654697,-500.0,0.00041643,31]
[330036372,1718956654722,-776.06,0.00041643,31]
[330036373,1718956654747,-500.0,0.00041643,31]
[330036374,1718956654772,-1138.65,0.00041643,31]
[330036375,1718956654800,-500.0,0.00041643,31]
[330036376,1718956654828,-500.0,0.00041643,31]
[330036377,1718956654858,-547.5,0.00041643,31]
[330036378,1718956654884,-500.0,0.00041643,31]
[330036379,1718956654918,-500.0,0.00041643,31]
[330036380,1718956654946,-500.0,0.00041643,31]
[330036381,1718956654973,-626.21,0.00041643,31]
[330036382,1718956654999,-1056.09,0.00041643,31]
[330036383,1718956655029,-500.0,0.00041643,31]
[330036384,1718956655055,-508.96027307,0.00041643,31]
[330036385,1718956655081,-500.0,0.00041643,31]
[330036386,1718956655106,-500.0,0.00041643,31]
[330036387,1718956655130,-500.0,0.00041643,31]
[330036388,1718956655157,-500.0,0.00041643,31]
[330036389,1718956655182,-546.9,0.00041643,31]
[330036390,1718956655208,-284.65918916,0.00041643,31]
[330036391,1718956655235,-500.0,0.00041643,31]
[330036392,1718956655260,-500.0,0.00041643,31]
[330036393,1718956655286,-626.80643819,0.00041643,31]
[330036394,1718956655312,-612.03,0.00041643,31]
[330036395,1718956655337,-521.39,0.00041643,31]
[330036396,1718956655363,-500.0,0.00041643,31]
[330036397,1718956655388,-500.0,0.00041643,31]
[330036398,1718956655418,-500.0,0.00041643,31]
[330036399,1718956655443,-500.0,0.00041643,31]
[330036400,1718956655467,-500.0,0.00041643,31]
[330036401,1718956655492,-500.0,0.00041643,31]
[330036402,1718956655519,-500.0,0.00041643,31]
[330036403,1718956655546,-500.0,0.00041643,31]
[330036404,1718956655571,-500.0,0.00041643,31]
[330036405,1718956655598,-500.0,0.00041643,31]
[330036406,1718956655624,-500.0,0.00041643,31]
[330036407,1718956655651,-500.0,0.00041643,31]
[330036408,1718956655680,-727.93,0.00041643,31]
[330036409,1718956655705,-500.0,0.00041643,31]
[330036410,1718956655731,-500.0,0.00041643,31]
[330036411,1718956655756,-542.21,0.00041643,31]
[330036412,1718956655782,-500.0,0.00041643,31]
[330036413,1718956655809,-500.0,0.00041643,31]
[330036414,1718956655841,-620.71,0.00041643,31]
[330036415,1718956655869,-1142.19,0.00041643,31]
[330036416,1718956655902,-500.0,0.00041643,31]
[330036417,1718956655931,-505.43892161,0.00041643,31]
[330036418,1718956655956,-500.0,0.00041643,31]
[330036419,1718956655982,-500.0,0.00041643,31]
[330036420,1718956656006,-510.80981815,0.00041643,31]
[330036421,1718956656031,-683.52,0.00041643,31]
[330036422,1718956656055,-611.44,0.00041643,31]
[330036423,1718956656080,-500.0,0.00041643,31]
[330036424,1718956656108,-821.65,0.00041643,31]
[330036425,1718956656134,-627.34,0.00041643,31]
[330036426,1718956656160,-587.05,0.00041643,31]
[330036427,1718956656185,-500.0,0.00041643,31]
[330036428,1718956656210,-500.0,0.00041643,31]
[330036429,1718956656235,-592.29839068,0.00041643,31]
[330036430,1718956656265,-625.5,0.00041643,31]
[330036431,1718956656296,-500.0,0.00041643,31]
[330036432,1718956656326,-500.0,0.00041643,31]
[330036433,1718956656356,-500.0,0.00041643,31]
[330036434,1718956656386,-500.0,0.00041643,31]
[330036435,1718956656417,-500.0,0.00041643,31]
[330036436,1718956656447,-500.0,0.00041643,31]
[330036437,1718956656478,-500.0,0.00041643,31]
[330036438,1718956656508,-500.0,0.00041643,31]
[330036439,1718956656538,-500.0,0.00041643,31]
[330036440,1718956656567,-531.12,0.00041643,31]
[330036441,1718956656598,-500.0,0.00041643,31]
[330036442,1718956656627,-500.0,0.00041643,31]
[330036443,1718956656655,-500.0,0.00041643,31]
[330036444,1718956656683,-500.0,0.00041643,31]
[330036445,1718956656711,-500.0,0.00041643,31]
[330036446,1718956656738,-1146.89,0.00041643,31]
[330036447,1718956656766,-500.0,0.00041643,31]
[330036448,1718956656793,-544.44048677,0.00041643,31]
[330036449,1718956656820,-500.0,0.00041643,31]
[330036450,1718956656854,-500.0,0.00041643,31]
[330036451,1718956656888,-500.0,0.00041643,31]
[330036452,1718956656925,-500.0,0.00041643,31]
[330036453,1718956656957,-500.0,0.00041643,31]
[330036454,1718956657199,-500.0,0.00041643,31]
[330036455,1718956657230,-500.0,0.00041643,31]
[330036456,1718956657260,-1059.37,0.00041643,31]
[330036457,1718956657290,-699.11,0.00041643,31]
[330036458,1718956657321,-500.0,0.00041643,31]
[330036459,1718956657350,-500.0,0.00041643,31]
[330036460,1718956657381,-811.24,0.00041643,31]
[330036461,1718956657412,-689.89,0.00041643,31]
[330036462,1718956657443,-500.0,0.00041643,31]
[330036463,1718956657471,-946.4,0.00041643,31]
[330036464,1718956657501,-502.76,0.00041643,31]
[330036465,1718956657532,-500.0,0.00041643,31]
[330036466,1718956657563,-500.0,0.00041643,31]
[330036467,1718956657591,-500.0,0.00041643,31]
[330036468,1718956657620,-500.0,0.00041643,31]
[330036469,1718956657653,-554.1,0.00041643,31]
[330036470,1718956657680,-709.95,0.00041643,31]
[330036471,1718956657710,-602.05453264,0.00041643,31]
[330036472,1718956657740,-1217.96,0.00041643,31]
[330036473,1718956657769,-500.0,0.00041643,31]
[330036474,1718956657798,-500.0,0.00041643,31]
[330036475,1718956657828,-500.0,0.00041643,31]
[330036476,1718956657861,-500.0,0.00041643,31]
[330036477,1718956657892,-500.0,0.00041643,31]
[330036478,1718956657928,-2621.89,0.00041643,31]
[330036479,1718956657956,-500.0,0.00041643,31]
[330036480,1718956657986,-500.0,0.00041643,31]
[330036481,1718956658015,-500.0,0.00041643,31]
[330036482,1718956658043,-514.47105749,0.00041643,31]
[330036483,1718956658072,-500.0,0.00041643,31]
[330036484,1718956658104,-500.0,0.00041643,31]
[330036485,1718956658134,-500.0,0.00041643,31]
[330036486,1718956658166,-500.0,0.00041643,31]
[330036487,1718956658196,-500.0,0.00041643,31]
[330036488,1718956658228,-500.0,0.00041643,31]
[330036489,1718956658258,-500.0,0.00041643,31]
[330036490,1718956658288,-500.0,0.00041643,31]
[330036491,1718956658316,-500.0,0.00041643,31]
[330036492,1718956658345,-500.0,0.00041643,31]
[330036493,1718956658374,-500.0,0.00041643,31]
[330036494,1718956658405,-500.0,0.00041643,31]
[330036495,1718956658434,-619.67,0.00041643,31]
[330036496,1718956658465,-413.79163651,0.00041643,31]
[330036497,1718956658495,-564.1,0.00041643,31]
[330036498,1718956658524,-868.95,0.00041643,31]
[330036499,1718956658552,-500.0,0.00041643,31]
[330036500,1718956658581,-887.61,0.00041643,31]
[330036501,1718956658609,-500.0,0.00041643,31]
[330036502,1718956658642,-500.0,0.00041643,31]
[330036503,1718956658674,-500.0,0.00041643,31]
[330036504,1718956658702,-429.00730776,0.00041643,31]
[330036505,1718956658731,-500.0,0.00041643,31]
[330036506,1718956658760,-500.0,0.00041643,31]
[330036507,1718956658789,-500.0,0.00041643,31]
[330036508,1718956658819,-500.0,0.00041643,31]
[330036509,1718956658854,-500.0,0.00041643,31]
[330036510,1718956658884,-500.0,0.00041643,31]
[330036511,1718956658916,-500.0,0.00041643,31]
[330036512,1718956658949,-500.0,0.00041643,31]
[330036513,1718956658979,-500.0,0.00041643,31]
[330036514,1718956659008,-500.0,0.00041643,31]
[330036515,1718956659040,-500.0,0.00041643,31]
[330036516,1718956659071,-500.0,0.00041643,31]
[330036517,1718956659101,-627.84,0.00041643,31]
[330036518,1718956659131,-683.29,0.00041643,31]
[330036519,1718956659163,-500.0,0.00041643,31]
[330036520,1718956659195,-500.0,0.00041643,31]
[330036521,1718956659231,-500.0,0.00041643,31]
[330036522,1718956659263,-508.55200295,0.00041643,31]
[330036523,1718956659294,-500.0,0.00041643,31]
[330036524,1718956659326,-511.82,0.00041643,31]
[330036525,1718956659358,-500.0,0.00041643,31]
[330036526,1718956659390,-1556.81,0.00041643,31]
[330036527,1718956659423,-500.0,0.00041643,31]
[330036528,1718956659457,-500.0,0.00041643,31]
[330036529,1718956659489,-500.0,0.00041643,31]
[330036530,1718956659520,-867.89,0.00041643,31]
[330036531,1718956659552,-506.27,0.00041643,31]
[330036532,1718956659583,-500.0,0.00041643,31]
[330036533,1718956659614,-500.0,0.00041643,31]
[330036534,1718956659647,-500.0,0.00041643,31]
[330036535,1718956659681,-500.0,0.00041643,31]
[330036536,1718956659712,-500.0,0.00041643,31]
[330036537,1718956659741,-500.0,0.00041643,31]
[330036538,1718956659771,-854.92,0.00041643,31]
[330036539,1718956659800,-799.68,0.00041643,31]
[330036540,1718956659831,-500.0,0.00041643,31]
[330036541,1718956659866,-500.0,0.00041643,31]
[330036542,1718956659904,-500.0,0.00041643,31]
[330036543,1718956659937,-239.15027043,0.00041643,31]
[330036544,1718956659968,-500.0,0.00041643,31]
[330036545,1718956660000,-500.0,0.00041643,31]
[330036546,1718956660031,-500.0,0.00041643,31]
[330036547,1718956660062,-500.0,0.00041643,31]
[330036548,1718956660093,-685.69,0.00041643,31]
[330036549,1718956660124,-500.0,0.00041643,31]
[330036550,1718956660160,-586.31,0.00041643,31]
[330036551,1718956660195,-500.0,0.00041643,31]
[330036552,1718956660229,-2515.54,0.00041643,31]
[330036553,1718956660263,-500.0,0.00041643,31]
[330036554,1718956660296,-794.68,0.00041643,31]
[330036555,1718956660328,-748.3,0.00041643,31]
[330036556,1718956660364,-500.0,0.00041643,31]
[330036557,1718956660403,-500.0,0.00041643,31]
[330036558,1718956660435,-500.0,0.00041643,31]
[330036559,1718956660683,-2027.12,0.00041643,31]
[330036560,1718956660716,-500.0,0.00041643,31]
[330036561,1718956660748,-500.0,0.00041643,31]
[330036562,1718956660778,-532.7,0.00041643,31]
[330036563,1718956660807,-500.0,0.00041643,31]
[330036564,1718956660841,-725.95,0.00041643,31]
[330036565,1718956660872,-617.01,0.00041643,31]
[330036566,1718956660908,-500.0,0.00041643,31]
[330036567,1718956660942,-500.0,0.00041643,31]
[330036568,1718956660971,-500.0,0.00041643,31]
[330036569,1718956661001,-500.0,0.00041643,31]
[330036570,1718956661031,-500.0,0.00041643,31]
[330036571,1718956661062,-1306.27,0.00041643,31]
[330036572,1718956661092,-500.0,0.00041643,31]
[330036573,1718956661123,-552.85437024,0.00041643,30]
[330036574,1718956661157,-820.21,0.00041643,31]
[330036575,1718956661187,-1387.47,0.00041643,31]
[330036576,1718956661217,-937.52,0.00041643,31]
[330036577,1718956661253,-719.64,0.00041643,31]
[330036578,1718956661286,-506.86,0.00041643,31]
[330036579,1718956661319,-500.0,0.00041643,31]
[330036580,1718956661354,-500.0,0.00041643,31]
[330036581,1718956661389,-500.0,0.00041643,32]
[330036582,1718956661434,-500.0,0.00041643,31]
[330036583,1718956661475,-1861.61,0.00041643,31]
[330036584,1718956661513,-500.0,0.00041643,31]
[330036585,1718956661551,-839.9,0.00041643,31]
[330036586,1718956661589,-1385.69,0.00041643,31]
[330036587,1718956661628,-500.0,0.00041643,31]
[330036588,1718956661667,-1103.6,0.00041643,31]
[330036589,1718956661706,-1279.92,0.00041643,31]
[330036590,1718956661744,-500.0,0.00041643,31]
[330036591,1718956661782,-500.0,0.00041643,31]
[330036592,1718956661822,-500.0,0.00041643,31]
[330036593,1718956661866,-500.0,0.00041643,31]
[330036594,1718956661905,-500.0,0.00041643,31]
[330036595,1718956661937,-500.0,0.00041643,31]
[330036596,1718956661968,-500.0,0.00041643,31]
[330036597,1718956661998,-381.34027634,0.00041643,31]
[330036598,1718956662029,-530.78,0.00041643,31]
[330036599,1718956662059,-500.0,0.00041643,31]
[330036600,1718956662091,-604.54,0.00041643,31]
[330036601,1718956662125,-503.05916584,0.00041643,31]
[330036602,1718956662162,-697.14,0.00041643,31]
[330036603,1718956662196,-500.0,0.00041643,31]
[330036604,1718956662230,-559.39,0.00041643,31]
[330036605,1718956662263,-500.0,0.00041643,31]
[330036606,1718956662295,-500.0,0.00041643,31]
[330036607,1718956662328,-500.0,0.00041643,31]
[330036608,1718956662359,-2074.77,0.00041643,31]
[330036609,1718956662391,-500.0,0.00041643,31]
[330036610,1718956662430,-500.0,0.00041643,31]
[330036611,1718956662462,-841.77,0.00041643,31]
[330036612,1718956662493,-500.0,0.00041643,31]
[330036613,1718956662523,-500.0,0.00041643,31]
[330036614,1718956662555,-500.0,0.00041643,31]
[330036615,1718956662588,-214.68838476,0.00041643,31]
[330036616,1718956662625,-1249.83,0.00041643,31]
[330036617,1718956662663,-500.0,0.00041643,31]
[330036618,1718956662700,-520.78,0.00041643,31]
[330036619,1718956662743,-525.07,0.00041643,31]
[330036620,1718956662781,-500.0,0.00041643,31]
[330036621,1718956662821,-500.0,0.00041643,31]
[330036622,1718956662862,-500.0,0.00041643,31]
[330036623,1718956662908,-500.0,0.00041643,31]
[330036624,1718956662961,-500.0,0.00041643,31]
[330036625,1718956662999,-500.0,0.00041643,31]
[330036626,1718956663040,-1280.89,0.00041643,31]
[330036627,1718956663081,-500.0,0.00041643,31]
[330036628,1718956663118,-500.0,0.00041643,31]
[330036629,1718956663157,-500.0,0.00041643,31]
[330036630,1718956663192,-816.14,0.00041643,31]
[330036631,1718956663225,-500.0,0.00041643,31]
[330036632,1718956663258,-500.0,0.00041643,31]
[330036633,1718956663291,-500.0,0.00041643,31]
[330036634,1718956663322,-520.36,0.00041643,31]
[330036635,1718956663356,-905.36,0.00041643,31]
[330036636,1718956663389,-500.0,0.00041643,31]
[330036637,1718956663420,-500.0,0.00041643,31]
[330036638,1718956663468,-577.24,0.00041643,31]
[330036639,1718956663501,-500.0,0.00041643,31]
[330036640,1718956663532,-500.0,0.00041643,31]
[330036641,1718956663565,-518.18201,0.00041643,31]
[330036642,1718956663596,-500.0,0.00041643,31]
[330036643,1718956663626,-1103.23,0.00041643,31]
[330036644,1718956663655,-500.0,0.00041643,31]
[330036645,1718956663685,-869.8,0.00041643,31]
[330036646,1718956663716,-503.09811823,0.00041643,31]
[330036647,1718956663744,-500.0,0.00041643,31]
[330036648,1718956663773,-500.0,0.00041643,31]
[330036649,1718956663802,-500.0,0.00041643,31]
[330036650,1718956663838,-601.45306748,0.00041643,31]
[330036651,1718956663869,-500.0,0.00041643,31]
[330036652,1718956663903,-500.0,0.00041643,31]
[330036653,1718956663943,-505.32034589,0.00041643,31]
[330036654,1718956663974,-1432.67,0.00041643,31]
[330036655,1718956664011,-1111.39,0.00041643,31]
[330036656,1718956664043,-1635.92,0.00041643,31]
[330036657,1718956664073,-500.0,0.00041643,31]
[330036658,1718956664104,-500.0,0.00041643,31]
[330036659,1718956664135,-500.0,0.00041643,31]
[330036660,1718956664166,-514.7517496,0.00041643,31]
[330036661,1718956664194,-447.03512318,0.00041643,31]
[330036662,1718956664223,-500.0,0.00041643,31]
[330036663,1718956664256,-500.0,0.00041643,31]
[330036664,1718956664490,-500.0,0.00041643,31]
[330036665,1718956664525,-500.0,0.00041643,31]
[330036666,1718956664555,-500.0,0.00041643,31]
[330036667,1718956664585,-652.24,0.00041643,31]
[330036668,1718956664616,-500.0,0.00041643,31]
[330036669,1718956664646,-820.38,0.00041643,31]
[330036670,1718956664676,-853.86,0.00041643,31]
[330036671,1718956664709,-560.61,0.00041643,31]
[330036672,1718956664738,-500.0,0.00041643,31]
[330036673,1718956664768,-500.0,0.00041643,31]
[330036674,1718956664799,-751.95,0.00041643,120]
[330036675,1718956664831,-500.0,0.00041643,31]
[330036676,1718956664865,-803.6,0.00041643,31]
[330036677,1718956664899,-545.71,0.00041643,31]
[330036678,1718956664933,-227.84489566,0.00041643,31]
[330036679,1718956664966,-500.0,0.00041643,31]
[330036680,1718956664998,-561.06,0.00041643,31]
[330036681,1718956665033,-1411.32,0.00041643,31]
[330036682,1718956665065,-714.43,0.00041643,31]
[330036683,1718956665096,-500.0,0.00041643,31]
[330036684,1718956665129,-500.0,0.00041643,31]
[330036685,1718956665161,-500.0,0.00041643,31]
[330036686,1718956665193,-592.38,0.00041643,31]
[330036687,1718956665224,-500.0,0.00041643,31]
[330036688,1718956665258,-511.62,0.00041643,31]
[330036689,1718956665290,-500.0,0.00041643,31]
[330036690,1718956665320,-597.98,0.00041643,31]
[330036691,1718956665351,-500.0,0.00041643,31]
[330036692,1718956665384,-559.72,0.00041643,31]
[330036693,1718956665416,-1755.1,0.00041643,31]
[330036694,1718956665447,-1205.72,0.00041643,31]
[330036695,1718956665479,-500.0,0.00041643,31]
[330036696,1718956665510,-977.06,0.00041643,31]
[330036697,1718956665541,-745.53,0.00041643,31]
[330036698,1718956665572,-503.48036846,0.00041643,31]
[330036699,1718956665603,-1292.73,0.00041643,31]
[330036700,1718956665632,-500.0,0.00041643,31]
[330036701,1718956665663,-1038.42,0.00041643,31]
[330036702,1718956665693,-525.02,0.00041643,31]
[330036703,1718956665722,-500.0,0.00041643,31]
[330036704,1718956665752,-500.0,0.00041643,31]
[330036705,1718956665782,-500.0,0.00041643,31]
[330036706,1718956665813,-500.0,0.00041643,31]
[330036707,1718956665845,-500.0,0.00041643,31]
[330036708,1718956665875,-534.60578125,0.00041643,31]
[330036709,1718956665910,-500.0,0.00041643,31]
[330036710,1718956665945,-500.0,0.00041643,31]
[330036711,1718956665977,-1318.48,0.00041643,31]
[330036712,1718956666009,-500.0,0.00041643,31]
[330036713,1718956666042,-533.66,0.00041643,31]
[330036714,1718956666074,-2112.62,0.00041643,31]
[330036715,1718956666105,-500.0,0.00041643,31]
[330036716,1718956666136,-760.35,0.00041643,31]
[330036717,1718956666166,-1515.35,0.00041643,31]
[330036718,1718956666197,-500.0,0.00041643,31]
[330036719,1718956666228,-733.36,0.00041643,31]
[330036720,1718956666259,-614.66,0.00041643,31]
[330036721,1718956666289,-500.0,0.00041643,31]
[330036722,1718956666321,-1818.36,0.00041643,31]
[330036723,1718956666354,-500.0,0.00041643,31]
[330036724,1718956666385,-500.0,0.00041643,31]
[330036725,1718956666418,-500.0,0.00041643,31]
[330036726,1718956666452,-500.0,0.00041643,31]
[330036727,1718956666483,-500.0,0.00041643,31]
[330036728,1718956666515,-500.0,0.00041643,31]
[330036729,1718956666546,-500.0,0.00041643,31]
[330036730,1718956666576,-500.0,0.00041643,31]
[330036731,1718956666607,-734.54,0.00041643,31]
[330036732,1718956666637,-500.0,0.00041643,31]
[330036733,1718956666667,-748.46,0.00041643,31]
[330036734,1718956666701,-500.0,0.00041643,31]
[330036735,1718956666732,-670.99,0.00041643,31]
[330036736,1718956666765,-612.85,0.00041643,31]
[330036737,1718956666798,-500.0,0.00041643,31]
[330036738,1718956666834,-500.0,0.00041643,31]
[330036739,1718956666870,-2032.2,0.00041643,31]
[330036740,1718956666907,-503.22220904,0.00041643,31]
[330036741,1718956666938,-531.03,0.00041643,31]
[330036742,1718956666969,-500.0,0.00041643,31]
[330036743,1718956667001,-500.0,0.00041643,31]
[330036744,1718956667032,-500.0,0.00041643,31]
[330036745,1718956667064,-1637.8,0.00041643,31]
[330036746,1718956667096,-500.0,0.00041643,31]
[330036747,1718956667127,-500.0,0.00041643,31]
[330036748,1718956667158,-3313.85,0.00041643,30]
[330036749,1718956667189,-500.0,0.00041643,31]
[330036750,1718956667220,-735.27,0.00041643,31]
[330036751,1718956667252,-500.0,0.00041643,31]
[330036752,1718956667282,-500.0,0.00041643,31]
[330036753,1718956667314,-500.0,0.00041643,31]
[330036754,1718956667346,-500.0,0.00041643,31]
[330036755,1718956667378,-500.0,0.00041643,31]
[330036756,1718956667412,-500.0,0.00041643,31]
[330036757,1718956667445,-500.0,0.00041643,31]
[330036758,1718956667478,-500.0,0.00041643,31]
[330036759,1718956667509,-500.0,0.00041643,31]
[330036760,1718956667540,-500.0,0.00041643,31]
[330036761,1718956667575,-1039.06,0.00041643,31]
[330036762,1718956667610,-500.0,0.00041643,31]
[330036763,1718956667642,-1160.78,0.00041643,31]
[330036764,1718956667674,-500.0,0.00041643,31]
[330036765,1718956667707,-500.0,0.00041643,31]
[330036766,1718956667739,-500.0,0.00041643,31]
[330036767,1718956667769,-500.0,0.00041643,31]
[330036768,1718956667799,-500.0,0.00041643,31]